Cogmind - Beta 12 @@@ ROGUE MODE // 2023.10.15 @ 21:02:19 Player: Figgis Result: Destroyed by P-60 Hacker with Shock Rifle Performance ------------- Evolutions (0) 0 Regions Visited (3) 600 Robots Destroyed (25) 125 Value Destroyed (820) 820 Prototype IDs (23) 460 Alien Tech Used (0) 0 Bonus (1344) 1344 TOTAL SCORE: 3349 Bonus ------- Follower Combat Kills 1044 Aligned with FarCom 300 Cogmind --------- Core Integrity 0/250 Matter 297/300 Energy 100/100 System Corruption 6% Temperature Warm (177) Movement Walking (120) Location -10/Exiles Parts ------- > --- POWER (1) -------- (None) > --- PROPULSION (2) --- Aluminum Leg Carbon-fiber Leg > --- UTILITY (2) ------ Medium Storage Unit Supersonic Drone Bay (1/1) > --- WEAPON (2) ------- Light Assault Rifle > --- INVENTORY (10) --- Light Ion Engine Light Nuclear Core Carbon-fiber Leg Carbon-fiber Leg Improved Heat Sink AWS/Gauss Peak State ------------ > --- POWER ------------ Ion Engine > --- PROPULSION ------- Aluminum Leg Carbon-fiber Leg > --- UTILITY ---------- Medium Storage Unit Supersonic Drone Bay > --- WEAPON ----------- AWS/Gauss > --- INVENTORY -------- Light Ion Engine Light Nuclear Core Aluminum Leg Improved Heat Sink Particle Gun Light Assault Rifle [Rating: 31] Favorites ----------- Power Ion Engine Engine Ion Engine Propulsion Aluminum Leg Leg Aluminum Leg Utility Improved Heat Sink Device Improved Heat Sink Storage Small Storage Unit Weapon Assault Rifle Energy Gun Particle Gun Ballistic Gun Assault Rifle Build | -11 -10 -10 -10 ------- Run | Jun Mat Min Exi Slots Evolved . | . . . . Power . | . . . . Propulsion . | . . . . Utility . | . . . . Weapon . | . . . . Parts Attached 19 | 6 2 3 8 Power 2 | 1 . 1 . Engine 2 | 1 . 1 . Core . | . . . . Reactor . | . . . . Propulsion 6 | 2 . 1 3 Treads . | . . . . Leg 6 | 2 . 1 3 Wheel . | . . . . Hover . | . . . . Flight . | . . . . Utility 5 | 1 1 1 2 Device 3 | . 1 1 1 Storage 2 | 1 . . 1 Processor . | . . . . Hackware . | . . . . Protection . | . . . . Artifact . | . . . . Weapon 6 | 2 1 . 3 Energy Gun 2 | . 1 . 1 Energy Cannon . | . . . . Ballistic Gun 4 | 2 . . 2 Ballistic Cannon . | . . . . Launcher . | . . . . Special Weapon . | . . . . Impact Weapon . | . . . . Slashing Weapon . | . . . . Piercing Weapon . | . . . . Special Melee Weapon . | . . . . Unidentified Prototypes . | . . . . Parts Lost 4 | . . . 4 Power 1 | . . . 1 Propulsion 1 | . . . 1 Utility . | . . . . Weapon 2 | . . . 2 Highest Loss Streak 2 | . . . 2 To Critical Strikes . | . . . . Average Slot Usage (%) 97 | . 91 100 97 Engine 14 | . 14 14 14 Leg 28 | . 28 28 28 Device 12 | . 5 14 14 Storage 14 | . 14 14 14 Energy Gun 11 | . 5 14 11 Ballistic Gun 15 | . 22 14 14 Naked Turns . | . . . . Heaviest Build 26 | 14 16 16 26 Greatest Support 25 | 20 20 25 25 Greatest Overweight (x) 1 | 1 . 1 1 Average Overweight (x) . | . . . . Largest Inventory Capacity 10 | 8 8 8 10 Average Capacity 8 | 6 8 8 9 Most Carried 10 | 5 7 8 10 Average Carried 7 | 2 4 7 7 Final Capacity 10 | 8 8 8 10 Final Carried 8 | 2 6 8 7 Class Distribution -------------------- 62% | Scavenger-Mutant 37% | Mutant Dominant Class ---------------- Mutant | -10/Materials Scavenger-Mutant | -10/Mines Scavenger-Mutant | -10/Exiles Resources | -11 -10 -10 -10 ----------- Run | Jun Mat Min Exi Matter Collected 638 | 244 186 109 99 Remotely . | . . . . Salvage Created 882 | . 336 243 303 Parts 61 | . 13 26 22 Haulers Intercepted . | . . . . Recyclers Shooed 4 | . 3 1 . Parts Field Recycled . | . . . . Retrieved Matter . | . . . . Parts Self-Destructed . | . . . . Prevented . | . . . . Kills | -11 -10 -10 -10 ------- Run | Jun Mat Min Exi Combat Hostiles Destroyed 23 | . 5 10 8 Guns 23 | . 5 10 8 Classes Destroyed 6 | . 3 1 2 Recycler 1 | . 1 . . Watcher 1 | . 1 . . Swarmer 6 | . . 6 . Grunt 11 | . 5 4 2 Brawler 2 | . . . 2 Programmer 4 | . . . 4 Best Kill Streak 4 | . 3 3 4 Combat Bots Only 4 | . 2 3 4 Max Kills in Single Turn 2 | . 1 2 1 Gunslinging 1 | . . 1 . Exploded . | . . . . Melee . | . . . . Uniques/NPCs Destroyed . | . . . . Combat | -11 -10 -10 -10 -------- Run | Jun Mat Min Exi Damage Taken 1054 | . 194 218 642 Core 256 | . 23 57 176 Absorbed by Shields . | . . . . Core Remaining (%) 100 | 100 . . . Volleys Fired 60 | . 30 21 9 Largest 2 | . 2 2 2 Hottest 85 | . 85 85 85 Shots Fired 158 | . 58 42 58 Gun 158 | . 58 42 58 Cannon . | . . . . Launcher . | . . . . Special . | . . . . Kinetic 123 | . 50 21 52 Thermal 35 | . 8 21 6 Explosive . | . . . . Electromagnetic . | . . . . Robot Hit Streak 13 | . 8 13 8 Robot Miss Streak 6 | . 2 5 6 Penetration Max . | . . . . Secondary Targets 2 | . . 2 . Max Gunslinging Chain 1 | . . 1 . Autonomous 44 | . . . 44 Shots Hit Robots 98 | . 43 23 32 Core Hits 44 | . 14 15 15 Critical Kills 1 | . . . 1 Critical Parts Destroyed . | . . . . Critical Strikes 2 | . 1 . 1 Burn 1 | . 1 . . Destroy 1 | . . . 1 Melee Attacks . | . . . . Impact . | . . . . Slashing . | . . . . Piercing . | . . . . Sneak Attacks . | . . . . Combat Hostiles . | . . . . Follow-up Attacks . | . . . . Damage Inflicted 1943 | . 559 321 1063 Guns 1941 | . 559 319 1063 Cannons . | . . . . Explosions . | . . . . Melee . | . . . . Ramming 2 | . . 2 . Kinetic 1650 | . 483 146 1021 Thermal 291 | . 76 173 42 Explosive . | . . . . Electromagnetic . | . . . . Impact . | . . . . Slashing . | . . . . Piercing . | . . . . Highest Corruption 5 | . 1 1 5 Average Corruption 1 | . 1 1 1 Corruption Purged . | . . . . Corruption Blocked . | . . . . Effects 16 | . 1 8 7 Message Errors 1 | . . 1 . Matter Fused 5 | . . 3 2 Heat Flow Errors 3 | . . 2 1 Energy Discharges 2 | . . 1 1 Data Loss (minor) 4 | . 1 1 2 Data Loss (major) 1 | . . . 1 Overload Shots . | . . . . Overflow Damage . | . . . . Projectiles . | . . . . Explosions . | . . . . Melee . | . . . . Knockbacks . | . . . . Impact . | . . . . Kinetic . | . . . . Secondary . | . . . . Self-Inflicted Damage . | . . . . Shots . | . . . . Rammed . | . . . . Targets Rammed 1 | . . 1 . Kicked 1 | . . 1 . Crushed . | . . . . Highest Temperature 187 | . 114 80 187 Average Temperature 44 | . 44 23 60 Received Heat Transfer 258 | . 114 60 84 Siege Activations . | . . . . Robots Corrupted . | . . . . Combat Hostiles . | . . . . Parts Fried . | . . . . Impact Corruptions . | . . . . Robots Melted . | . . . . Combat Hostiles . | . . . . Parts Melted . | . . . . Heat Transferred 777 | . 259 407 111 Parts Sabotaged . | . . . . Parts Stolen . | . . . . Parts Stripped . | . . . . Power Chain Reactions . | . . . . Missiles Intercepted . | . . . . Alert | -11 -10 -10 -10 ------- Run | Jun Mat Min Exi Peak Influence 185 | . 157 185 . Initial 61 | . . 61 . Average 91 | . 84 99 . Maximum Alert Level . | . . . . Low Security (%) 100 | 100 100 100 . Level 1 . | . . . . Level 2 . | . . . . Level 3 . | . . . . Level 4 . | . . . . Level 5 . | . . . . High Security . | . . . . Max Security . | . . . . Squads Dispatched 1 | . 1 . . Investigation 1 | . 1 . . Extermination . | . . . . Reinforcement . | . . . . Assault . | . . . . Garrison . | . . . . Intercept . | . . . . Searches Triggered . | . . . . Construction Impeded . | . . . . Haulers Reinforced . | . . . . Active Scanning Responses . | . . . . Cargo Convoy Interrupts . | . . . . Stealth | -11 -10 -10 -10 --------- Run | Jun Mat Min Exi Distress Signals 2 | . 2 . . Communications Jammed . | . . . . Distress Signals . | . . . . Times Spotted 59 | . 7 13 39 Peak Tracking Total 11 | . 3 3 11 Tactical Retreats 4 | . 1 2 1 Traps | -11 -10 -10 -10 ------- Run | Jun Mat Min Exi Traps Triggered 1 | . 1 . . Indirectly . | . . . . Trap Hack Attempts . | . . . . Triggered . | . . . . Disarmed . | . . . . Reprogrammed . | . . . . Reused . | . . . . Traps Extracted . | . . . . Installed . | . . . . Triggered . | . . . . Exploded 1 | . . . 1 Machines | -11 -10 -10 -10 ---------- Run | Jun Mat Min Exi Machines Disabled 4 | . . . 4 Max in Single Turn 1 | . . . 1 Machines Repaired . | . . . . Machines Sabotaged . | . . . . Overloaded Fab Kills . | . . . . Hacking | -11 -10 -10 -10 --------- Run | Jun Mat Min Exi Machines Accessed 3 | . 1 . 2 Terminals 1 | . 1 . . Fabricators . | . . . . Repair Stations . | . . . . Recycling Units . | . . . . Scanalyzers . | . . . . Garrison Access . | . . . . Total Hacks 5 | . 3 . 2 Successful 2 | . . . 2 Failed 3 | . 3 . . Catastrophic 1 | . 1 . . Database Lockouts . | . . . . Manual 4 | . 3 . 1 Terminals 3 | . 3 . . Fabricators . | . . . . Repair Stations . | . . . . Recycling Units . | . . . . Scanalyzers . | . . . . Garrison Access . | . . . . Terminal Hacks 2 | . . . 2 Record 1 | . . . 1 EX-Prototype ID Bank 1 | . . . 1 Fabricator Hacks . | . . . . Repair Station Hacks . | . . . . Recycling Unit Hacks . | . . . . Scanalyzer . | . . . . Garrison Access Hacks . | . . . . Unauthorized Hacks . | . . . . Terminals . | . . . . Fabricators . | . . . . Repair Stations . | . . . . Recycling Units . | . . . . Scanalyzers . | . . . . Garrison Access . | . . . . Data Cores Recovered . | . . . . Used . | . . . . Hacking Detections 1 | . 1 . . Full Trace Events 1 | . 1 . . Feedback Events 1 | . 1 . . Corruption 1 | . 1 . . Feedback Blocked . | . . . . Robot Schematics Acquired . | . . . . Robots Built . | . . . . Authchips . | . . . . Time . | . . . . Total Robot Build Rating . | . . . . Part Schematics Acquired . | . . . . Parts Built . | . . . . Authchips . | . . . . Time . | . . . . Total Part Build Rating . | . . . . Parts Repaired . | . . . . Time . | . . . . Parts Recycled . | . . . . Recycled Matter . | . . . . Retrieved Matter . | . . . . Retrieved Components . | . . . . Parts Scanalyzed . | . . . . Part Schematics Acquired . | . . . . Parts Damaged . | . . . . Bothacking | -11 -10 -10 -10 ------------ Run | Jun Mat Min Exi Used RIF Installer . | . . . . Robots Hacked . | . . . . Non-combat . | . . . . Combat . | . . . . Robot Hacks Applied . | . . . . Relay Couplers Released . | . . . . Fabnet Peak Effective % . | . . . . Robots Rewired . | . . . . Allies Hacked . | . . . . Hacks Repelled . | . . . . Allies | -11 -10 -10 -10 -------- Run | Jun Mat Min Exi Total Allies . | . . . . Largest Group . | . . . . Highest-Rated Group . | . . . . Highest-Rated Ally . | . . . . Total Orders . | . . . . Ally Attacks 79 | . . . 79 Total Damage 4016 | . . . 4016 Kills 30 | . . . 30 Allies Corrupted . | . . . . Allies Melted . | . . . . Turrets Deployed 3 | . . . 3 Intel | -11 -10 -10 -10 ------- Run | Jun Mat Min Exi Robot Analysis Total . | . . . . Derelict Logs Recovered 1 | . . 1 . Drone Launches 1 | . . . 1 Drone Recoveries 1 | . . . 1 Exploration | -11 -10 -10 -10 ------------- Run | Jun Mat Min Exi Turns Passed 2036 | 45 318 849 824 Spaces Moved 1364 | 35 177 551 601 Core 16 | 16 . . . Treads . | . . . . Legs 1348 | 19 177 551 601 Wheels . | . . . . Hover . | . . . . Flight . | . . . . Fastest Speed 50 | 50 120 120 120 Average Speed 122 | 93 120 120 126 Slowest Speed 190 | 120 120 190 190 Overloaded Moves . | . . . . Propulsion Burnouts . | . . . . Robots Hopped 1 | . . . 1 Cave-ins Triggered . | . . . . Exploration Rate (%) 47 | 3 24 95 68 Regions Visited 3 Branch Regions 2 Pre-discovered Areas 2 | . . 1 1 Known Exits Taken . | . . . . Unknown Exits Taken 3 | 1 1 1 . Scrap Searched 1 | . . 1 . Spaces Dug . | . . . . Terrain Destroyed 11 | . . . 11 Melee . | . . . . Projectile 11 | . . . 11 AOE . | . . . . Terrain Rammed . | . . . . Walls Destroyed . | . . . . Machines Disabled . | . . . . Actions | -11 -10 -10 -10 --------- Run | Jun Mat Min Exi Total 1618 | 45 224 696 653 Wait 144 | . 11 116 17 Move 1359 | 34 176 550 599 Hop 1 | . . . 1 Pick Up 20 | 5 5 2 8 Fast Attach 3 | 3 . . . Attach 8 | 3 1 . 4 Detach 2 | . . . 2 Swap 8 | . 1 3 4 Drop 12 | . . 3 9 Fire 60 | . 30 21 9 Melee . | . . . . Ram . | . . . . Kick 1 | . . 1 . Crush . | . . . . Escape Stasis . | . . . . Rewire . | . . . . Trap . | . . . . Miscellaneous . | . . . . Route ------- -11/Junkyard -10/Materials -10/Mines (discovered 3 exits: [*Mat x2] / *Exi) -10/Exiles History --------- Turn | Location | Event 14 | -11/Junkyard | Discovered new exit (range 15) 46 | -11/Junkyard | Entered Materials 303 | -10/Materials | Discovered new exit (range 8) 313 | -10/Materials | Build established: Mutant 364 | -10/Materials | Entered Mines 383 | -10/Mines | Met a Derelict bent on vengeance 924 | -10/Mines | Deemed a non-threat by the Exiles lab entrance 924 | -10/Mines | Discovered new exit (range 5) 926 | -10/Mines | Build established: Scavenger-Mutant 1006 | -10/Mines | Discovered new exit (range 8) 1061 | -10/Mines | Discovered new exit (range 8) 1111 | -10/Mines | Learned location of Zion (-6) 1213 | -10/Mines | Entered Exiles 1248 | -10/Exiles | Met 8R-AWN 1269 | -10/Exiles | Met EX-HEX 1311 | -10/Exiles | Met EX-BIN 1327 | -10/Exiles | Aligned with FarCom system 1329 | -10/Exiles | Given EX-Vault access code 1387 | -10/Exiles | Met EX-DEC 1571 | -10/Exiles | Opened EX-Vault 1580 | -10/Exiles | Found AWS/Gauss 1605 | -10/Exiles | Warned to stay clear of 0b10 Research branches 1621 | -10/Exiles | Exiles lab attacked by MAIN.C 1731 | -10/Exiles | Found Deploy-a-Sentry 1734 | -10/Exiles | Found Deploy-a-Sentry 1736 | -10/Exiles | Found Supersonic Drone Bay 1739 | -10/Exiles | Found Deploy-a-Sentry 1780 | -10/Exiles | DAS Turret deployed 1782 | -10/Exiles | DAS Turret deployed 1785 | -10/Exiles | DAS Turret deployed 1818 | -10/Exiles | Core integrity fell below 50% 2013 | -10/Exiles | Core integrity fell below 20% 2037 | -10/Exiles | Destroyed by P-60 Hacker with Shock Rifle Last Messages --------------- 01984_ H-55 Commando destroyed. 01998_ Acquired 10 matter. 02010_ Acquired Carbon-fiber Leg. 02020_ G-34 Mercenary knocked back. 02021_ Destroyed Ion Engine. 02021_ G-34 Mercenary destroyed. 02023_ Destroyed Remote Datajack. 02023_ P-60 Hacker knocked back. 02026_ Trailblazer retrieved by Supersonic Drone Bay. 02026_ DAS Turret destroyed. 02026_ P-60 Hacker destroyed. 02027_ Destroyed Ion Engine. 02027_ G-34 Mercenary knocked back. 02030_ Ion Engine destroyed. 02030_ Particle Gun destroyed. 02030_ Machine disabled. 02031_ Destroyed Shock Rifle. 02031_ P-60 Hacker knocked back. 02034_ System corrupted: Heat flow error (+172). 02036_ G-34 Mercenary destroyed. Map ----- +----------------------------------------------------+ | ??????????????????????#X #???????????????????? | | ??????????????????????## #???????????????????? | | ???????????????????????# #???????????????????? | | ???????????????????????# #???###?????????????? | | ???????????????????????# #??"""""????????????? | | ???????????????????????# ## """????????????? | | ???????????????????????# X""????????????? | | ???????????????????????# ## """????????????? | | ????????????????#####??# #??"""""????????????? | | ????????????????""""""?# #???###?????????????? | | ????????????????"""" ## #???????????????????? | | ???????????????#""X" #???????????????????? | | ???????????????#" #???????????????????? | | ???????????????#" ## #???????????????????? | | ???????????????#""""""?# #?#########?????????? | | ???????????????##"###??# #?#"""""""#?????????? | | ???????????????? ??????# #?#"""""""#?????????? | | ???????????????????????# #?#"""""""#?????????? | | ??????????????????????## ###"" """"#?????????? | | ??????????????????????#" """"#?????????? | | ??????????????????????#" """#?????????? | | ??????????????????????#" """#?????????? | | ??????????????????????# """#?????????? | | ?????????####?????????# """#?????????? | | ????????? """????????# """##????????? | | ?????????" """#???????## @t """"""???????? | | ????????"" #????????#t % """##????????? | | ???????#"" #????????# "X" """""????????? | | ???????#"" "#????????# """ # ????????? | | ???????? ""?????????# """""""""#?????????? | | ?????????" "?????????## ;##########?????????? | | ?????????# #????????## !%%#??????????????????? | | ####???### ###?###### !=*!#??????????????????? | | """#####X# #"###""" g%=#??????????????????? | | """""" " % /%!!%##???###########???? | | "" """ =%%%p*#####"""""""""##??? | | " " = %%[%g%!*[* " """ """"##?? | | %*% %%[%!%%* "" " #?? | | ! =!!% *[%%*%*%% " """#?? | | %! %!%!% %%=%%[== " "#?? | | # % %!=%* %%%=%! " "##? | | ##" %[ =!%=[=! ""## | | ?#""" %%/% """ " % %=%! """ | | ##" = ;####;""" %%**%%[ [% " | | #"" " ;#???#;###;" " | | #""" ""#"????###?###""" | | """ ""##???????????#"""" [= | | """ ""#???????????##"" !% | | "" ########??####"""" * | | """ ## ####""" | +----------------------------------------------------+ Best States ------------- Heat Dissipation 39 Energy Generation 10 Energy Capacity 250 Matter Stores 300 Matter Capacity 300 Sight Range 16 Terrain Scan Density 10 Evasion (%) 55 Item Schematics ----------------- None Robot Schematics ------------------ None Fabricated ------------ Nothing Alien Tech Used ----------------- None Achievements -------------- None Challenges ------------ None Game ------ Seed StormTiamatCarapace Manual? 0 Play Time 00:12:48 Cumulative 60.7 hours Start 2023.10.15 @ 20:49:21 End 2023.10.15 @ 21:02:19 Sessions 1 Manual Loads 0 Difficulty Rogue Special Mode None Game No. 106 Rogue 103 Adventurer 3 Explorer 0 Win Type - Total 0 Types 0/0/0/0/0/0/0/0/0 Lore% 33 Gallery% 48 Achievement% 33 Wizard Run 0 Options --------- ASCII 0 Keyboard 0 Movement Mouse Keybinds 0 Fullscreen 2 Font 18/SmallcapsGlow Map View 76x50 Tactical HUD 1 Map Filters NONE Filters NONE Steam 1 RUN: 28128003-d2ee-46ee-9c5f-f359bc765b13